[Event "Tsaghkadzor Open 2024"]
[Site "Tsaghkadzor"]
[Date "2024.10.02"]
[Round "1.7"]
[White "Hakobyan, Menua"]
[Black "Pour Agha Bala, Amirreza"]
[Result "1/2-1/2"]
[ECO "B75"]
[WhiteElo "2141"]
[BlackElo "2506"]
[Annotator "TA"]
[PlyCount "57"]
[EventDate "2024.09.13"]
[EventType "swiss"]
[EventCountry "ARM"]
[SourceTitle "playchess.com"]
[Source "ChessBase"]
[SourceQuality "1"]
[TimeControl "40/5400+30:1800+30"]

{[%evp 21,57,85,85,61,89,93,86,78,92,83,99,85,103,109,112,89,145,117,166,65,76,75,76,79,65,60,116,0,0,0,229,239,243,64,85,34,38,65]} 1. e4 {[%emt 0:00:03]} c5 {[%emt 0:00:06]} 2. Nf3 {[%emt 0:00:05]} d6 {[%emt 0:00:05]} 3. d4 {[%emt 0:00:08]} cxd4 {[%emt 0:00:04]} 4. Nxd4 {[%emt 0:00:04]} Nf6 {[%emt 0:00:06]} 5. Nc3 {[%emt 0:00:07]} g6 {[%emt 0:00:19]} 6. Be3 {[%emt 0:00:07]} Nc6 {[%emt 0:00:04]} 7. f3 {[%emt 0:00:22]} h5 {[%emt 0:00:07]} 8. Bc4 {[%emt 0:00:12]} Bd7 {[%emt 0:00:07]} 9. Qd2 {[%emt 0:00:33]} Ne5 {[%emt 0:01:01]} 10. Bb3 {[%emt 0:00:13]} Rc8 {[%emt 0:00:08]} 11. O-O-O {[%emt 0:00:40]} Bg7 {[%emt 0:00:39]} 12. Kb1 {[%emt 0:00:13]} Nc4 {[%emt 0:02:10]} 13. Bxc4 {[%emt 0:00:07]} Rxc4 {[%emt 0:00:04]} 14. h3 {[%emt 0:00:08] White is better.} h4 {[%emt 0:03:10]} 15. Rhe1 {[%emt 0:00:19]} Rh5 {[%emt 0:02:47]} 16. Nde2 {[%emt 0:00:13]} Ra5 {[%emt 0:08:08]} 17. Bd4 {[%emt 0:00:10]} Kf8 {[%emt 0:04:20]} 18. f4 {[%emt 0:17:00]} Be6 {[%emt 0:17:10]} (18... Ra6 $142) 19. Qe3 $16 {[%emt 0:05:16][%cal Og2g4]} Qc8 {[%emt 0:05:12]} (19... Rc6 $16) 20. Nc1 {[%emt 0:05:43]} (20. Bxa7 Nxe4 21. Bd4 (21. Nxe4 $2 Rxe4 22. Qxe4 Bf5 $19) 21... Bxd4 22. Rxd4 Nxc3+ 23. Nxc3 Qc5 24. Rxc4 Qxe3 (24... Qxc4 25. Qf2 $11) 25. Rxe3 Bxc4 $19) (20. b3 $1 $18 {[%cal Rb3c4]} Rc7 21. a4 (21. Bxa7 $2 Nxe4 22. Qxe4 Rxa7 $19)) 20... b5 $14 {[%emt 0:14:19][%cal Bb7b5,Bb5b4,Bb4c3][%mdl 32]} 21. f5 {[%emt 0:30:41]} (21. Bxa7 Nxe4 22. Nd5 (22. Nxe4 $2 Rxc2 23. Nc3 Rxc3 $19) 22... Bxd5 $19 (22... Rxc2 $2 23. Bd4 $19)) 21... b4 {[%emt 0:06:07]} 22. fxe6 {[%emt 0:00:40]} bxc3 {[%emt 0:01:03]} 23. b3 {[%emt 0:00:25]} Rc6 {[%emt 0:04:29]} (23... Rb5 $14) 24. exf7 {[%emt 0:20:28]} (24. Bxa7 fxe6 (24... Qxe6 25. Bd4 $14) 25. Qf2 Qb7 $17) (24. Ne2 $1 $16) 24... e5 $11 {[%emt 0:04:15]} 25. Qg5 $1 {[%emt 0:00:08] Bf2 would now be deadly. The board is on fire.} Rca6 $2 {[%emt 0:00:12]} (25... Qa6 $11 26. Be3 Rb5) 26. Be3 $18 {[%emt 0:03:05]} Qc7 {[%emt 0:01:43][%cal Oa5a2] [#] ( -> ...Rxa2!)} 27. Rd3 $2 {[%emt 0:06:07]} (27. Qxh4 {is a self mate.} Rxa2) (27. Rd5 $1 $18) 27... Nxe4 $14 {[%emt 0:07:03] [#]} 28. Qxh4 {[%emt 0:03:48] White is more active.} (28. Qxg6 $2 {is the wrong capture.} Rxa2 29. Nxa2 Qa5 $19) ({White should play} 28. Qg4 $1 $16 {[%cal Rg4e4]} d5 29. Rf1) 28... Rxa2 $1 {[%emt 0:05:44]} 29. Nxa2 {[%emt 0:00:04] Weighted Error Value: White=0.28 (precise) /Black=0.26 (precise) .  Loses game:     	---       	Black=1      Missed win:     	White=1     	---        Mistake:       	White=3     	Black=3      Inaccurate:     	---       	Black=1      OK:         	White=10    	Black=5      Best:        	---       	Black=3      Strong:       	White=1     	Black=1} 1/2-1/2

[Event "Tsaghkadzor Open 2024"]
[Site "Tsaghkadzor"]
[Date "2024.10.02"]
[Round "1.8"]
[White "Gharibyan, Mamikon"]
[Black "Tovmasyan, Karen"]
[Result "1/2-1/2"]
[ECO "D93"]
[WhiteElo "2472"]
[BlackElo "2141"]
[Annotator "TA"]
[PlyCount "90"]
[EventDate "2024.09.13"]
[EventType "swiss"]
[EventCountry "ARM"]
[SourceTitle "playchess.com"]
[Source "ChessBase"]
[SourceQuality "1"]
[TimeControl "40/5400+30:1800+30"]

{[%evp 14,90,29,12,56,51,50,34,83,63,68,64,63,70,78,74,92,35,43,35,40,41,44,42,41,40,41,45,45,45,53,52,45,0,0,0,0,-12,-18,-22,0,0,0,-1,0,-20,0,-8,-16,-16,0,-3,0,0,0,0,0,0,0,0,0,0,0,0,0,0,0,0,0,0,0,0,0,0,0,0,0,0,0]} 1. d4 {[%emt 0:00:14]} d5 {[%emt 0:00:19]} 2. Nf3 {[%emt 0:00:27]} Nf6 {[%emt 0:00:08]} 3. Bf4 {[%emt 0:00:05]} c6 {[%emt 0:01:12]} 4. e3 {[%emt 1:31:44]} g6 {[%emt 0:03:51]} 5. c4 {[%emt 0:00:00]} Bg7 {[%emt 0:02:56]} 6. Nc3 {[%emt 0:00:00]} O-O {[%emt 0:01:22]} 7. Rc1 {[%emt 0:00:00]} Be6 {[%emt 0:17:12]} 8. Qb3 {[%emt 0:00:00]} b6 {[%emt 0:04:39][%cal Bb7b6,Bb6b5][%mdl 32]} 9. Be2 {[%emt 0:00:00]} a5 {[%emt 0:04:36]} 10. Ng5 {[%emt 0:00:00] Nxe6 would now be deadly.} a4 {[%emt 0:14:52]} 11. Qd1 {[%emt 0:00:00]} ({Much worse is} 11. Nxa4 dxc4 12. Qd1 (12. Qxb6 Rxa4 13. Qxd8 Rxd8 $14) (12. Bxc4 $2 Bxc4 13. Qxc4 b5 $19) (12. Nxe6 $2 cxb3 13. Nxd8 bxa2 $17) 12... Bf5 $15) 11... Bd7 {[%emt 0:07:46]} 12. O-O {[%emt 0:00:00]} ({Much weaker is} 12. Nxa4 h6 13. Nf3 dxc4 $11) (12. cxd5 {simplifies} Nxd5 13. Nxd5 cxd5 14. Nf3) 12... dxc4 {[%emt 0:09:09]} 13. Bxc4 {[%emt 0:00:00]} b5 {[%emt 0:05:11]} 14. Be2 {[%emt 0:00:00] White has more active pieces.} h6 {[%emt 0:01:03] [#]} 15. Nge4 {[%emt 0:00:00]} (15. Nf3 $1 $16) 15... Nxe4 $14 {[%emt 0:00:40]} 16. Nxe4 {[%emt 0:00:00]} Be6 {[%emt 0:00:06]} 17. b3 {[%emt 0:00:00]} Nd7 {[%emt 0:05:43]} 18. Nc5 {[%emt 0:00:00]} (18. Rxc6 Bd5 19. Qc2 (19. Bc7 $2 Qc8 $17) 19... axb3 20. axb3 Bxc6 21. Qxc6 b4 $11) 18... Nxc5 {[%emt 0:03:35]} 19. Rxc5 {[%emt 0:00:00]} axb3 {[%emt 0:00:45]} 20. axb3 {[%emt 0:00:00]} Ra3 {[%emt 0:00:28]} 21. Rxc6 {[%emt 0:00:00]} Bxb3 {[%emt 0:00:07]} 22. Qc1 {[%emt 0:00:00]} b4 {[%emt 0:01:27]} 23. Bf3 {[%emt 0:01:36]} Bd5 {[%emt 0:05:57] The position is equal.} 24. Bxd5 {[%emt 0:00:07]} Qxd5 {[%emt 0:00:02]} 25. Qc4 {[%emt 0:00:46]} Qxc4 {[%emt 0:01:38]} 26. Rxc4 {[%emt 0:00:05]} b3 {[%emt 0:00:08]} 27. Rb1 {[%emt 0:03:52]} g5 {[%emt 0:00:46]} 28. Bg3 {[%emt 0:00:58]} f5 {[%emt 0:04:42]} 29. Kf1 {[%emt 0:00:16]} h5 {[%emt 0:01:29] aiming for ...f4.} 30. h3 {[%emt 0:01:15]} f4 {[%emt 0:00:42]} 31. exf4 {[%emt 0:00:03]} h4 {[%emt 0:00:05]} 32. Bh2 {[%emt 0:00:07]} gxf4 {[%emt 0:00:04]} 33. Rb4 {[%emt 0:04:28]} f3 {[%emt 0:03:03]} 34. R4xb3 {[%emt 0:00:47]} fxg2+ {[%emt 0:00:45]} 35. Kxg2 {[%emt 0:00:06]} Ra2 {[%emt 0:00:48]} 36. R1b2 {[%emt 0:00:50]} Rxb2 {[%emt 0:00:05]} 37. Rxb2 {[%emt 0:00:03]} Bxd4 $11 {[%emt 0:00:03][%mdl 4096] Endgame. KRB-KRB} 38. Re2 {[%emt 0:00:05]} Rf5 {[%emt 0:00:55]} 39. f4 {[%emt 0:00:34]} Kf7 {[%emt 0:00:39]} 40. Kf3 {[%emt 0:00:00] [#] And now Ke4 would win.} Rb5 {[%emt 0:00:00]} 41. Kg4 {[%emt 0:16:13]} Bf6 {[%emt 0:15:41]} 42. Bg1 {[%emt 0:02:05]} Rb4 {[%emt 0:00:20]} 43. Kf3 {[%emt 0:03:04]} Kg6 {[%emt 0:03:08]} 44. Bc5 {[%emt 0:04:15]} Rb3+ {[%emt 0:00:11]} 45. Re3 {[%emt 0:00:19]} Rxe3+ {[%emt 0:14:42] Weighted Error Value: White=0.07 (flawless) /Black=0.06 (flawless) .  Mistake:       	White=1     	Black=1      Inaccurate:     	White=1     	---        OK:         	White=18    	Black=19     Best:        	---       	Black=2} 1/2-1/2